[Event "17th Memorial Lezcano Montalvo 2025"]
[Site "Gran Canaria"]
[Date "2025.04.16"]
[Round "5.8"]
[White "Maerevoet, Sim"]
[Black "Strikovic, Aleksa"]
[Result "1-0"]
[Annotator "RC"]
[ECO "C41"]
[WhiteElo "2451"]
[BlackElo "2367"]
[PlyCount "85"]
[EventDate "2025.04.13"]
[EventType "swiss"]
[EventCountry "ESP"]
[SourceTitle "playchess.com"]
[Source "ChessBase"]
[SourceQuality "1"]
[TimeControl "5400+30"]

1. e4 {[%emt 0:00:03]} d6 {[%emt 0:00:11]} 2. d4 {[%emt 0:00:07]} Nf6 {[%emt 0:00:03]} 3. Nc3 {[%emt 0:00:05]} e5 {[%emt 0:00:03]} 4. Nf3 {[%emt 0:00:08]} Nbd7 {[%emt 0:00:05]} 5. Be3 {[%emt 0:00:11]} Ng4 {[%emt 0:03:56]} 6. Bd2 {[%emt 0:00:17]} c6 {[%emt 0:00:05]} 7. h3 {[%emt 0:00:36]} Ngf6 {[%emt 0:00:04]} 8. Be3 {[%emt 0:00:13]} b5 {[%emt 0:00:27]} 9. Bd3 {[%emt 0:00:38]} Bb7 {[%emt 0:00:26]} 10. O-O {[%emt 0:02:54]} Be7 {[%emt 0:00:35]} 11. a4 {[%emt 0:04:09]} a6 {[%emt 0:01:45]} 12. Ne2 {[%emt 0:01:49]} O-O {[%emt 0:02:48]} 13. c3 {[%emt 0:06:01]} d5 {[%emt 0:04:36]} 14. Nxe5 {[%emt 0:04:31]} Nxe4 {[%emt 0:13:01]} 15. Bxe4 {[%emt 0:09:49]} dxe4 {[%emt 0:00:16]} 16. Ng3 {[%emt 0:00:32]} Nxe5 {[%emt 0:05:34]} 17. dxe5 {[%emt 0:00:07]} Qc7 {[%emt 0:13:49]} 18. Qg4 {[%emt 0:09:53]} Qxe5 {[%emt 0:01:53]} 19. Bd4 {[%emt 0:00:47]} Qg5 {[%emt 0:00:05]} 20. Qxg5 {[%emt 0:02:16]} Bxg5 {[%emt 0:00:02]} 21. Nxe4 {[%emt 0:00:09]} c5 {[%emt 0:00:15]} 22. Nxc5 {[%emt 0:00:39]} Bc6 {[%emt 0:00:06]} 23. Rfe1 {[%emt 0:06:48]} h6 {[%emt 0:00:33]} 24. b4 {[%emt 0:06:38]} Rfc8 {[%emt 0:20:46]} 25. Ra3 {[%emt 0:03:57]} Bf4 {[%emt 0:08:49]} 26. Nd3 {[%emt 0:12:55]} Bd6 {[%emt 0:03:10]} 27. a5 {[%emt 0:05:14]} Re8 {[%emt 0:00:13]} 28. Be5 {[%emt 0:03:08]} Bf8 {[%emt 0:01:04]} 29. Raa1 {[%emt 0:01:12]} Rad8 {[%emt 0:00:56]} 30. Bd4 {[%emt 0:00:55]} f6 {[%emt 0:12:51]} 31. f3 {[%emt 0:02:24]} Rxe1+ {[%emt 0:00:20]} 32. Rxe1 {[%emt 0:00:13]} Kf7 {[%emt 0:00:02]} 33. h4 {[%emt 0:06:21]} Bd6 {[%emt 0:01:25]} 34. Kf2 {[%emt 0:01:02]} h5 {[%emt 0:00:20]} 35. Bc5 {[%emt 0:00:49]} Bf8 {[%emt 0:00:59]} 36. Re3 {[%emt 0:00:55]} Bd6 {[%emt 0:01:11]} 37. Bxd6 {[%emt 0:00:18]} Rxd6 {[%emt 0:00:02]} 38. Nc5 {[%emt 0:01:34]} Bd7 {[%emt 0:01:23]} 39. Rd3 {[%emt 0:00:39]} Rxd3 {[%emt 0:00:06]} 40. Nxd3 {[%emt 0:00:02]} Ke7 {[%emt 0:00:10]} 41. Ke3 {[%emt 0:01:08]} Kd6 {[%emt 0:00:07]} 42. Kd4 {[%emt 0:01:20]} Bc8 {[%emt 0:00:07]} 43. Nf4 {[%emt 0:08:34]} 1-0

[Event "17th Memorial Lezcano Montalvo 2025"]
[Site "Gran Canaria"]
[Date "2025.04.16"]
[Round "5.9"]
[White "Rodriguez Avila, Alvaro"]
[Black "Martinez Ramirez, Lennis"]
[Result "0-1"]
[Annotator "RC"]
[ECO "B27"]
[WhiteElo "2212"]
[BlackElo "2443"]
[PlyCount "116"]
[EventDate "2025.04.13"]
[EventType "swiss"]
[EventCountry "ESP"]
[SourceTitle "playchess.com"]
[Source "ChessBase"]
[SourceQuality "1"]
[TimeControl "5400+30"]

1. e4 {[%emt 0:00:03]} c5 {[%emt 0:00:12]} 2. Nf3 {[%emt 0:00:09]} g6 {[%emt 0:00:00]} 3. c3 {[%emt 0:00:50]} d5 {[%emt 0:00:24]} 4. e5 {[%emt 0:04:18]} Nc6 {[%emt 0:00:09]} 5. d4 {[%emt 0:01:00]} Bg4 {[%emt 0:00:46]} 6. Bb5 {[%emt 0:02:39]} Qa5 {[%emt 0:02:38]} 7. Bxc6+ {[%emt 0:01:31]} bxc6 {[%emt 0:00:01]} 8. O-O {[%emt 0:01:45]} e6 {[%emt 0:01:55]} 9. Nbd2 {[%emt 0:02:19]} c4 {[%emt 0:00:09]} 10. h3 {[%emt 0:02:04]} Bf5 {[%emt 0:00:21]} 11. Re1 {[%emt 0:05:06]} Rb8 {[%emt 0:00:16]} 12. b4 {[%emt 0:14:08]} Qc7 {[%emt 0:01:24]} 13. Nf1 {[%emt 0:01:50]} h6 {[%emt 0:00:34]} 14. Ng3 {[%emt 0:01:22]} Bd3 {[%emt 0:00:18]} 15. Nh2 {[%emt 0:07:17]} a5 {[%emt 0:00:19]} 16. a3 {[%emt 0:00:25]} Ra8 {[%emt 0:00:20]} 17. Be3 {[%emt 0:02:38]} Be7 {[%emt 0:00:11]} 18. Qd2 {[%emt 0:02:24]} Ra6 {[%emt 0:00:45]} 19. Ra2 {[%emt 0:03:15]} Kd7 {[%emt 0:00:16]} 20. Rea1 {[%emt 0:00:57]} Qa7 {[%emt 0:00:24]} 21. Nf3 {[%emt 0:00:24]} g5 {[%emt 0:00:10]} 22. Ne1 {[%emt 0:06:10]} Bg6 {[%emt 0:00:07]} 23. Ne2 {[%emt 0:01:14]} Bd8 {[%emt 0:00:08]} 24. bxa5 {[%emt 0:01:21]} Ne7 {[%emt 0:00:17]} 25. Nc2 {[%emt 0:00:46]} Rxa5 {[%emt 0:00:00]} 26. Rb2 {[%emt 0:00:58]} Bc7 {[%emt 0:00:15]} 27. Nb4 {[%emt 0:01:24]} Nf5 {[%emt 0:00:21]} 28. Nc2 {[%emt 0:04:02]} Rb8 {[%emt 0:00:20]} 29. Nb4 {[%emt 0:01:35]} Ra8 {[%emt 0:02:14]} 30. Kh1 {[%emt 0:00:44]} Rf8 {[%emt 0:01:45]} 31. Ng3 {[%emt 0:01:41]} Nxe3 {[%emt 0:02:02]} 32. Qxe3 {[%emt 0:00:10]} f6 {[%emt 0:00:07]} 33. Qf3 {[%emt 0:02:13]} Qa8 {[%emt 0:00:55]} 34. exf6 {[%emt 0:00:34]} Qd8 {[%emt 0:00:01]} 35. Nh5 {[%emt 0:01:17]} Bxh5 {[%emt 0:02:47]} 36. Qxh5 {[%emt 0:00:04]} Qxf6 {[%emt 0:00:01]} 37. Re2 {[%emt 0:00:50]} Qf4 {[%emt 0:10:39]} 38. g3 {[%emt 0:00:18]} Qf3+ {[%emt 0:00:02]} 39. Qxf3 {[%emt 0:00:07]} Rxf3 {[%emt 0:00:02]} 40. Rc2 {[%emt 0:06:54]} e5 {[%emt 0:02:15]} 41. Kg2 {[%emt 0:00:04]} e4 {[%emt 0:00:19]} 42. Rcc1 {[%emt 0:03:25]} Ra4 {[%emt 0:00:20]} 43. Ra2 {[%emt 0:02:08]} h5 {[%emt 0:00:12]} 44. Raa1 {[%emt 0:01:47]} Bd6 {[%emt 0:00:36]} 45. Na2 {[%emt 0:02:19]} Rxa3 {[%emt 0:00:36]} 46. Rc2 {[%emt 0:00:07]} c5 {[%emt 0:00:54]} 47. dxc5 {[%emt 0:00:25]} Bxc5 {[%emt 0:00:03]} 48. Rd1 {[%emt 0:00:11]} Ke6 {[%emt 0:00:57]} 49. Rdd2 {[%emt 0:00:39]} h4 {[%emt 0:01:29]} 50. gxh4 {[%emt 0:00:51]} gxh4 {[%emt 0:00:01]} 51. Rb2 {[%emt 0:00:10]} Rb3 {[%emt 0:00:07]} 52. Rbc2 {[%emt 0:00:13]} Ke5 {[%emt 0:00:08]} 53. Re2 {[%emt 0:00:56]} Ba3 {[%emt 0:00:13]} 54. Re3 {[%emt 0:01:12]} Kf4 {[%emt 0:00:37]} 55. Rce2 {[%emt 0:02:20]} Bc5 {[%emt 0:00:24]} 56. Nb4 {[%emt 0:00:33]} Bxb4 {[%emt 0:00:35]} 57. cxb4 {[%emt 0:00:06]} Rxb4 {[%emt 0:00:20]} 58. Rd2 {[%emt 0:00:26]} Rxe3 {[%emt 0:00:11]} 0-1

[Event "17th Memorial Lezcano Montalvo 2025"]
[Site "Gran Canaria"]
[Date "2025.04.16"]
[Round "5.10"]
[White "Fiorito, Joaquin"]
[Black "Paquico Rodriguez, Ivan"]
[Result "1-0"]
[Annotator "RC"]
[ECO "A41"]
[WhiteElo "2402"]
[BlackElo "2202"]
[PlyCount "87"]
[EventDate "2025.04.13"]
[EventType "swiss"]
[EventCountry "ESP"]
[SourceTitle "playchess.com"]
[Source "ChessBase"]
[SourceQuality "1"]
[TimeControl "5400+30"]

1. d4 {[%emt 0:00:03]} g6 {[%emt 0:00:10]} 2. c4 {[%emt 0:00:07]} Bg7 {[%emt 0:00:38]} 3. Nf3 {[%emt 0:00:20]} d6 {[%emt 0:00:26]} 4. Nc3 {[%emt 0:00:06]} e5 {[%emt 0:00:47]} 5. dxe5 {[%emt 0:00:05]} dxe5 {[%emt 0:00:06]} 6. Qxd8+ {[%emt 0:00:06]} Kxd8 {[%emt 0:00:03]} 7. g3 {[%emt 0:00:05]} h6 {[%emt 0:02:01]} 8. Bg2 {[%emt 0:00:08]} Nc6 {[%emt 0:00:17]} 9. O-O {[%emt 0:00:35]} Bf5 {[%emt 0:00:08]} 10. Rd1+ {[%emt 0:02:44]} Kc8 {[%emt 0:02:23]} 11. Nh4 {[%emt 0:06:51]} Bd7 {[%emt 0:06:08]} 12. Ne4 {[%emt 0:21:27]} Nf6 {[%emt 0:21:41]} 13. Nc5 {[%emt 0:01:49]} a5 {[%emt 0:04:57]} 14. b3 {[%emt 0:08:32]} Re8 {[%emt 0:03:57]} 15. Bb2 {[%emt 0:02:04]} Bg4 {[%emt 0:54:18]} 16. h3 {[%emt 0:11:54]} Bd7 {[%emt 0:00:00]} 17. f4 {[%emt 0:10:21]} Bf8 {[%emt 0:00:00]} 18. Nd3 {[%emt 0:00:22]} Nh5 {[%emt 0:00:00]} 19. Nxe5 {[%emt 0:03:33]} Nxe5 {[%emt 0:00:00]} 20. fxe5 {[%emt 0:03:32]} g5 {[%emt 0:00:00]} 21. Rxd7 {[%emt 0:04:34]} Kxd7 {[%emt 0:00:00]} 22. Nf5 {[%emt 0:00:10]} c6 {[%emt 0:00:00]} 23. Bf3 {[%emt 0:00:12]} Ng7 {[%emt 0:00:00]} 24. Nxg7 {[%emt 0:00:22]} Bxg7 {[%emt 0:00:00]} 25. e6+ {[%emt 0:00:03]} Kxe6 {[%emt 0:00:00]} 26. Bxg7 {[%emt 0:00:52]} f6 {[%emt 0:00:00]} 27. Rf1 {[%emt 0:00:17]} f5 {[%emt 0:00:21]} 28. Bxh6 {[%emt 0:00:59]} Rg8 {[%emt 0:01:08]} 29. g4 {[%emt 0:01:28]} f4 {[%emt 0:01:44]} 30. h4 {[%emt 0:00:06]} gxh4 {[%emt 0:00:31]} 31. Bxf4 {[%emt 0:00:10]} a4 {[%emt 0:00:45]} 32. b4 {[%emt 0:01:38]} Raf8 {[%emt 0:01:24]} 33. Be3 {[%emt 0:00:06]} h3 {[%emt 0:00:17]} 34. Kh2 {[%emt 0:00:04]} Ke5 {[%emt 0:00:51]} 35. Kxh3 {[%emt 0:00:22]} a3 {[%emt 0:00:45]} 36. Kg3 {[%emt 0:00:33]} Rd8 {[%emt 0:00:53]} 37. g5 {[%emt 0:00:16]} Rdf8 {[%emt 0:00:56]} 38. Rb1 {[%emt 0:00:21]} Kf5 {[%emt 0:00:48]} 39. Rb3 {[%emt 0:00:07]} Ra8 {[%emt 0:00:17]} 40. b5 {[%emt 0:00:11]} Ra4 {[%emt 0:01:05]} 41. bxc6 {[%emt 0:00:12]} bxc6 {[%emt 0:00:11]} 42. Bxc6 {[%emt 0:00:23]} Rxc4 {[%emt 0:00:48]} 43. Rb5+ {[%emt 0:00:20]} Kg6 {[%emt 0:00:21]} 44. Bd5 {[%emt 0:00:04]} 1-0

[Event "17th Memorial Lezcano Montalvo 2025"]
[Site "Gran Canaria"]
[Date "2025.04.16"]
[Round "5.11"]
[White "Krilovs, Nikolajs"]
[Black "Gomez Ledo, Roberto Carlos"]
[Result "0-1"]
[Annotator "RC"]
[ECO "E01"]
[WhiteElo "2112"]
[BlackElo "2396"]
[PlyCount "98"]
[EventDate "2025.04.13"]
[EventType "swiss"]
[EventCountry "ESP"]
[SourceTitle "playchess.com"]
[Source "ChessBase"]
[SourceQuality "1"]
[TimeControl "5400+30"]

1. d4 {[%emt 0:00:05]} Nf6 {[%emt 0:00:22]} 2. c4 {[%emt 0:00:08]} e6 {[%emt 0:00:14]} 3. Nf3 {[%emt 0:00:23]} d5 {[%emt 0:00:20]} 4. g3 {[%emt 0:00:14]} Bd6 {[%emt 0:00:41]} 5. Bg2 {[%emt 0:01:07]} O-O {[%emt 0:00:08]} 6. Qc2 {[%emt 0:01:54]} Nc6 {[%emt 0:01:14]} 7. O-O {[%emt 0:03:06]} dxc4 {[%emt 0:00:24]} 8. e4 {[%emt 0:02:20]} e5 {[%emt 0:09:06]} 9. d5 {[%emt 0:10:16]} Nb4 {[%emt 0:20:37]} 10. Qxc4 {[%emt 0:05:06]} c6 {[%emt 0:02:26]} 11. Nc3 {[%emt 0:08:21]} cxd5 {[%emt 0:02:35]} 12. exd5 {[%emt 0:03:15]} Bf5 {[%emt 0:01:51]} 13. Ne1 {[%emt 0:01:05]} h6 {[%emt 0:07:36]} 14. a3 {[%emt 0:05:25]} Na6 {[%emt 0:01:21]} 15. b4 {[%emt 0:02:06]} Rc8 {[%emt 0:03:24]} 16. Qb3 {[%emt 0:00:11]} Qd7 {[%emt 0:00:16]} 17. Bb2 {[%emt 0:05:02]} Nc7 {[%emt 0:06:02]} 18. Nf3 {[%emt 0:03:40]} Rfe8 {[%emt 0:06:15]} 19. Rfe1 {[%emt 0:03:18]} Re7 {[%emt 0:03:45]} 20. Rac1 {[%emt 0:04:40]} Rce8 {[%emt 0:01:14]} 21. Nd2 {[%emt 0:01:00]} Bh3 {[%emt 0:04:49]} 22. Bxh3 {[%emt 0:02:35]} Qxh3 {[%emt 0:00:12]} 23. Nce4 {[%emt 0:00:21]} Nxe4 {[%emt 0:02:57]} 24. Nxe4 {[%emt 0:03:02]} Qd7 {[%emt 0:00:26]} 25. Red1 {[%emt 0:01:25]} Rd8 {[%emt 0:00:50]} 26. a4 {[%emt 0:01:20]} Ne8 {[%emt 0:00:54]} 27. Ba3 {[%emt 0:04:27]} Qf5 {[%emt 0:01:13]} 28. f3 {[%emt 0:03:19]} Red7 {[%emt 0:01:11]} 29. Kg2 {[%emt 0:00:38]} Nf6 {[%emt 0:04:09]} 30. Nxf6+ {[%emt 0:05:53]} Qxf6 {[%emt 0:00:06]} 31. Bb2 {[%emt 0:00:58]} Qe7 {[%emt 0:00:53]} 32. Re1 {[%emt 0:01:04]} f6 {[%emt 0:02:37]} 33. b5 {[%emt 0:00:38]} Qf7 {[%emt 0:00:19]} 34. Red1 {[%emt 0:02:54]} Bf8 {[%emt 0:00:18]} 35. Qe3 {[%emt 0:05:49]} Rxd5 {[%emt 0:01:41]} 36. Rxd5 {[%emt 0:00:05]} Qxd5 {[%emt 0:00:10]} 37. Rc2 {[%emt 0:01:06]} b6 {[%emt 0:00:27]} 38. Qe2 {[%emt 0:02:32]} Bc5 {[%emt 0:00:20]} 39. Bc1 {[%emt 0:00:13]} Qd3 {[%emt 0:02:17]} 40. Qxd3 {[%emt 0:01:35]} Rxd3 {[%emt 0:00:02]} 41. Rc4 {[%emt 0:00:08]} Kf7 {[%emt 0:01:11]} 42. f4 {[%emt 0:00:06]} Ke6 {[%emt 0:00:20]} 43. fxe5 {[%emt 0:00:06]} fxe5 {[%emt 0:00:08]} 44. Kh3 {[%emt 0:02:45]} Rd4 {[%emt 0:00:30]} 45. Rxd4 {[%emt 0:01:18]} exd4 {[%emt 0:00:10]} 46. Kg4 {[%emt 0:00:07]} d3 {[%emt 0:01:02]} 47. Bd2 {[%emt 0:00:17]} Kd5 {[%emt 0:00:49]} 48. Kf5 {[%emt 0:00:07]} Bd4 {[%emt 0:00:32]} 49. g4 {[%emt 0:00:15]} Kc4 {[%emt 0:00:29]} 0-1

[Event "17th Memorial Lezcano Montalvo 2025"]
[Site "Gran Canaria"]
[Date "2025.04.16"]
[Round "5.12"]
[White "Halldorsson, Halldor"]
[Black "Barski, Radoslaw"]
[Result "0-1"]
[Annotator "RC"]
[ECO "B30"]
[WhiteElo "2103"]
[BlackElo "2385"]
[PlyCount "64"]
[EventDate "2025.04.13"]
[EventType "swiss"]
[EventCountry "ESP"]
[SourceTitle "playchess.com"]
[Source "ChessBase"]
[SourceQuality "1"]
[TimeControl "5400+30"]

1. e4 {[%emt 0:00:24]} c5 {[%emt 0:00:12]} 2. Nf3 {[%emt 0:00:21]} Nc6 {[%emt 0:00:26]} 3. Bb5 {[%emt 0:00:35]} Nf6 {[%emt 0:00:13]} 4. Nc3 {[%emt 0:02:04]} d6 {[%emt 0:00:28]} 5. O-O {[%emt 0:02:56]} e5 {[%emt 0:02:20]} 6. d3 {[%emt 0:01:44]} h6 {[%emt 0:03:09]} 7. a3 {[%emt 0:01:29]} a6 {[%emt 0:04:39]} 8. Bc4 {[%emt 0:01:46]} g6 {[%emt 0:05:07]} 9. h3 {[%emt 0:06:07]} Bg7 {[%emt 0:01:48]} 10. Be3 {[%emt 0:01:03]} O-O {[%emt 0:14:26]} 11. Kh2 {[%emt 0:06:28]} Nd4 {[%emt 0:16:21]} 12. Bxd4 {[%emt 0:06:27]} cxd4 {[%emt 0:04:20]} 13. Nd5 {[%emt 0:00:36]} Nh7 {[%emt 0:01:33]} 14. c3 {[%emt 0:09:37]} dxc3 {[%emt 0:02:23]} 15. bxc3 {[%emt 0:00:34]} Kh8 {[%emt 0:00:23]} 16. g4 {[%emt 0:03:00]} b5 {[%emt 0:03:43]} 17. Bb3 {[%emt 0:00:30]} f5 {[%emt 0:00:30]} 18. gxf5 {[%emt 0:00:30]} gxf5 {[%emt 0:00:30]} 19. Rg1 {[%emt 0:00:38]} Ra7 {[%emt 0:37:29]} 20. Rg3 {[%emt 0:04:32]} Raf7 {[%emt 0:00:00]} 21. exf5 {[%emt 0:03:46]} Rxf5 {[%emt 0:00:00]} 22. Ne3 {[%emt 0:00:29]} Rf4 {[%emt 0:00:00]} 23. Nd5 {[%emt 0:02:07]} R4f5 {[%emt 0:00:00]} 24. Ne3 {[%emt 0:00:26]} Rh5 {[%emt 0:00:00]} 25. Ra2 {[%emt 0:05:37]} Rxh3+ {[%emt 0:00:00]} 26. Rxh3 {[%emt 0:01:31]} Bxh3 {[%emt 0:00:00]} 27. Kg3 {[%emt 0:02:13]} Bc8 {[%emt 0:00:00]} 28. Qh1 {[%emt 0:01:14]} Qf6 {[%emt 0:00:00]} 29. Qh5 {[%emt 0:01:07]} Qf4+ {[%emt 0:00:00]} 30. Kg2 {[%emt 0:00:09]} Bb7 {[%emt 0:00:00]} 31. Bd5 {[%emt 0:01:54]} Nf6 {[%emt 0:00:00]} 32. Nh4 {[%emt 0:00:17]} Nxh5 {[%emt 0:00:00]} 0-1

[Event "17th Memorial Lezcano Montalvo 2025"]
[Site "Gran Canaria"]
[Date "2025.04.16"]
[Round "5.13"]
[White "Garcia Padron, Jose"]
[Black "Marrero Cardenes, Agustin"]
[Result "1/2-1/2"]
[Annotator "RC"]
[ECO "A14"]
[WhiteElo "2355"]
[BlackElo "2163"]
[PlyCount "90"]
[EventDate "2025.04.13"]
[EventType "swiss"]
[EventCountry "ESP"]
[SourceTitle "playchess.com"]
[Source "ChessBase"]
[SourceQuality "1"]
[TimeControl "5400+30"]

1. Nf3 {[%emt 0:00:39]} Nf6 {[%emt 0:00:16]} 2. c4 {[%emt 0:02:42]} e6 {[%emt 0:01:38]} 3. g3 {[%emt 0:00:23]} b6 {[%emt 0:00:48]} 4. Bg2 {[%emt 0:00:16]} Bb7 {[%emt 0:00:07]} 5. O-O {[%emt 0:00:22]} Be7 {[%emt 0:00:17]} 6. b3 {[%emt 0:01:54]} O-O {[%emt 0:00:44]} 7. Bb2 {[%emt 0:00:07]} c5 {[%emt 0:00:52]} 8. Nc3 {[%emt 0:00:56]} Nc6 {[%emt 0:01:08]} 9. e3 {[%emt 0:06:33]} d5 {[%emt 0:02:29]} 10. cxd5 {[%emt 0:01:10]} Nxd5 {[%emt 0:02:08]} 11. Nxd5 {[%emt 0:02:02]} Qxd5 {[%emt 0:06:30]} 12. d4 {[%emt 0:01:28]} Qd8 {[%emt 0:15:00]} 13. dxc5 {[%emt 0:31:46]} Bxc5 {[%emt 0:01:17]} 14. Ne5 {[%emt 0:00:23]} Nxe5 {[%emt 0:21:18]} 15. Bxb7 {[%emt 0:00:43]} Rb8 {[%emt 0:00:30]} 16. Bg2 {[%emt 0:00:33]} Nd3 {[%emt 0:03:16]} 17. Bc3 {[%emt 0:00:11]} f5 {[%emt 0:00:53]} 18. Qd2 {[%emt 0:18:55]} e5 {[%emt 0:01:16]} 19. b4 {[%emt 0:00:21]} Be7 {[%emt 0:00:47]} 20. e4 {[%emt 0:02:37]} Bg5 {[%emt 0:05:39]} 21. Qc2 {[%emt 0:01:56]} fxe4 {[%emt 0:00:59]} 22. Bxe4 {[%emt 0:03:02]} Nxf2 {[%emt 0:00:09]} 23. Rxf2 {[%emt 0:08:06]} Be3 {[%emt 0:00:05]} 24. Raf1 {[%emt 0:01:52]} Rc8 {[%emt 0:02:48]} 25. Kg2 {[%emt 0:05:28]} Rxf2+ {[%emt 0:04:40]} 26. Rxf2 {[%emt 0:00:06]} Bxf2 {[%emt 0:00:07]} 27. Kxf2 {[%emt 0:00:07]} Qf6+ {[%emt 0:01:03]} 28. Kg2 {[%emt 0:00:22]} Rf8 {[%emt 0:01:46]} 29. Qe2 {[%emt 0:00:14]} Kh8 {[%emt 0:01:43]} 30. h4 {[%emt 0:01:03]} Rc8 {[%emt 0:01:17]} 31. Qh5 {[%emt 0:03:04]} h6 {[%emt 0:06:23]} 32. Bxe5 {[%emt 0:02:17]} Qe6 {[%emt 0:00:02]} 33. Bg6 {[%emt 0:01:08]} Qxa2+ {[%emt 0:03:15]} 34. Kh3 {[%emt 0:00:11]} Qd2 {[%emt 0:08:05]} 35. Bf5 {[%emt 0:00:19]} Qc1 {[%emt 0:00:32]} 36. Qf3 {[%emt 0:03:29]} Rf8 {[%emt 0:01:27]} 37. g4 {[%emt 0:01:01]} Qe1 {[%emt 0:01:07]} 38. Bc3 {[%emt 0:00:14]} Qc1 {[%emt 0:00:53]} 39. h5 {[%emt 0:00:49]} Re8 {[%emt 0:00:55]} 40. Be5 {[%emt 0:00:25]} Qe1 {[%emt 0:01:13]} 41. Be4 {[%emt 0:00:17]} Qd2 {[%emt 0:03:12]} 42. Qf5 {[%emt 0:00:24]} Qe3+ {[%emt 0:00:21]} 43. Kg2 {[%emt 0:01:01]} Qe2+ {[%emt 0:00:11]} 44. Kg3 {[%emt 0:00:07]} Qe3+ {[%emt 0:00:31]} 45. Kh2 {[%emt 0:00:50]} Qe2+ {[%emt 0:00:08]} 1/2-1/2

[Event "17th Memorial Lezcano Montalvo 2025"]
[Site "Gran Canaria"]
[Date "2025.04.16"]
[Round "5.14"]
[White "Hu, Jiani"]
[Black "Sanz Wawer, Daniel"]
[Result "1/2-1/2"]
[Annotator "RC"]
[ECO "E05"]
[WhiteElo "2091"]
[BlackElo "2316"]
[PlyCount "89"]
[EventDate "2025.04.13"]
[EventType "swiss"]
[EventCountry "ESP"]
[SourceTitle "playchess.com"]
[Source "ChessBase"]
[SourceQuality "1"]
[TimeControl "5400+30"]

1. d4 {[%emt 0:00:03]} Nf6 {[%emt 0:01:43]} 2. c4 {[%emt 0:00:10]} e6 {[%emt 0:00:08]} 3. g3 {[%emt 0:00:06]} d5 {[%emt 0:00:20]} 4. Bg2 {[%emt 0:00:10]} Be7 {[%emt 0:00:07]} 5. Nf3 {[%emt 0:00:09]} O-O {[%emt 0:00:07]} 6. O-O {[%emt 0:00:06]} dxc4 {[%emt 0:00:31]} 7. Qc2 {[%emt 0:00:49]} a6 {[%emt 0:00:16]} 8. Qxc4 {[%emt 0:01:10]} b5 {[%emt 0:00:28]} 9. Qc2 {[%emt 0:00:46]} Bb7 {[%emt 0:00:26]} 10. Bg5 {[%emt 0:01:34]} Nbd7 {[%emt 0:02:51]} 11. Bxf6 {[%emt 0:01:23]} Nxf6 {[%emt 0:00:29]} 12. Nbd2 {[%emt 0:00:15]} Rc8 {[%emt 0:03:32]} 13. Nb3 {[%emt 0:03:32]} Be4 {[%emt 0:01:53]} 14. Qc3 {[%emt 0:03:21]} Nd5 {[%emt 0:14:34]} 15. Qd2 {[%emt 0:13:16]} Nb4 {[%emt 0:05:55]} 16. a3 {[%emt 0:08:27]} Nc6 {[%emt 0:01:37]} 17. Qe3 {[%emt 0:09:26]} Bd5 {[%emt 0:03:25]} 18. Rfd1 {[%emt 0:01:09]} Bf6 {[%emt 0:03:59]} 19. Rac1 {[%emt 0:03:12]} Ne7 {[%emt 0:07:49]} 20. Qd3 {[%emt 0:04:38]} Nf5 {[%emt 0:09:33]} 21. e3 {[%emt 0:02:54]} Nd6 {[%emt 0:01:11]} 22. Nc5 {[%emt 0:00:58]} Nc4 {[%emt 0:09:53]} 23. Qe2 {[%emt 0:08:56]} Bxf3 {[%emt 0:07:01]} 24. Bxf3 {[%emt 0:00:21]} Qd6 {[%emt 0:00:35]} 25. a4 {[%emt 0:07:28]} c6 {[%emt 0:06:42]} 26. b3 {[%emt 0:11:33]} Nb6 {[%emt 0:00:42]} 27. a5 {[%emt 0:01:30]} Nd5 {[%emt 0:05:34]} 28. e4 {[%emt 0:04:02]} Bg5 {[%emt 0:00:46]} 29. exd5 {[%emt 0:00:24]} Bxc1 {[%emt 0:00:08]} 30. Rxc1 {[%emt 0:00:34]} cxd5 {[%emt 0:00:32]} 31. b4 {[%emt 0:00:33]} Rfe8 {[%emt 0:01:41]} 32. Re1 {[%emt 0:00:30]} Rc6 {[%emt 0:01:28]} 33. Bg4 {[%emt 0:02:19]} Rc7 {[%emt 0:01:07]} 34. f4 {[%emt 0:01:01]} Rce7 {[%emt 0:01:53]} 35. Qe5 {[%emt 0:01:51]} Qc6 {[%emt 0:00:29]} 36. Qe3 {[%emt 0:03:26]} Qd6 {[%emt 0:00:21]} 37. Bh3 {[%emt 0:01:11]} Kf8 {[%emt 0:00:38]} 38. Kf2 {[%emt 0:00:25]} Kg8 {[%emt 0:00:33]} 39. Qe5 {[%emt 0:01:02]} Qc6 {[%emt 0:00:30]} 40. Qe3 {[%emt 0:03:26]} Kf8 {[%emt 0:00:17]} 41. Re2 {[%emt 0:00:46]} Qd6 {[%emt 0:00:31]} 42. Qe5 {[%emt 0:00:17]} Qc6 {[%emt 0:00:27]} 43. Qe3 {[%emt 0:00:29]} Qd6 {[%emt 0:00:14]} 44. Qe5 {[%emt 0:00:30]} Qc6 {[%emt 0:00:08]} 45. Qe3 {[%emt 0:01:34]} 1/2-1/2

[Event "17th Memorial Lezcano Montalvo 2025"]
[Site "Gran Canaria"]
[Date "2025.04.16"]
[Round "5.15"]
[White "Torres Rebolledo, Alvaro"]
[Black "Bethencourt Hernandez, Alberto"]
[Result "1-0"]
[Annotator "RC"]
[ECO "B48"]
[WhiteElo "2311"]
[BlackElo "2122"]
[PlyCount "53"]
[EventDate "2025.04.13"]
[EventType "swiss"]
[EventCountry "ESP"]
[SourceTitle "playchess.com"]
[Source "ChessBase"]
[SourceQuality "1"]
[TimeControl "5400+30"]

1. e4 {[%emt 0:00:05]} c5 {[%emt 0:00:19]} 2. Nf3 {[%emt 0:00:09]} e6 {[%emt 0:00:23]} 3. d4 {[%emt 0:00:06]} cxd4 {[%emt 0:00:17]} 4. Nxd4 {[%emt 0:00:06]} Nf6 {[%emt 0:00:17]} 5. Nc3 {[%emt 0:00:05]} Nc6 {[%emt 0:00:23]} 6. a3 {[%emt 0:00:10]} a6 {[%emt 0:01:38]} 7. Be3 {[%emt 0:04:11]} Qc7 {[%emt 0:02:40]} 8. Be2 {[%emt 0:01:32]} Be7 {[%emt 0:02:32]} 9. O-O {[%emt 0:02:15]} O-O {[%emt 0:00:15]} 10. f4 {[%emt 0:01:56]} d6 {[%emt 0:01:10]} 11. Qe1 {[%emt 0:01:45]} b5 {[%emt 0:13:04]} 12. Qg3 {[%emt 0:03:17]} Kh8 {[%emt 0:02:25]} 13. Nxc6 {[%emt 0:10:20]} Qxc6 {[%emt 0:00:06]} 14. e5 {[%emt 0:00:25]} dxe5 {[%emt 0:03:44]} 15. fxe5 {[%emt 0:00:24]} Nd5 {[%emt 0:00:04]} 16. Nxd5 {[%emt 0:01:08]} exd5 {[%emt 0:00:08]} 17. Bd3 {[%emt 0:01:17]} Bc5 {[%emt 0:01:34]} 18. Bxc5 {[%emt 0:01:58]} Qxc5+ {[%emt 0:00:37]} 19. Kh1 {[%emt 0:00:06]} Be6 {[%emt 0:13:37]} 20. Rf4 {[%emt 0:03:34]} Qe7 {[%emt 0:06:51]} 21. Raf1 {[%emt 0:01:47]} Rae8 {[%emt 0:03:17]} 22. Rh4 {[%emt 0:04:36]} h6 {[%emt 0:01:11]} 23. Rxh6+ {[%emt 0:04:57]} gxh6 {[%emt 0:00:22]} 24. Rf6 {[%emt 0:00:08]} Qxf6 {[%emt 0:05:56]} 25. exf6 {[%emt 0:00:26]} Bg4 {[%emt 0:00:17]} 26. h3 {[%emt 0:00:51]} Re6 {[%emt 0:01:35]} 27. Qf4 {[%emt 0:01:30]} 1-0